lending/lending_fUSD_20241124
["ID","MTS","AMOUNT","RATE_DAILY","PERIOD"]
[343197203,1732435849082,-500.0,0.00047346,2]
[343197204,1732435849091,-500.0,0.00047346,2]
[343197205,1732435849101,-500.0,0.00047346,2]
[343197206,1732435849110,-500.0,0.00047346,2]
[343197207,1732435849120,-569.58440577,0.00047346,2]
[343197208,1732435849130,-1177.48,0.00047346,2]
[343197209,1732435849140,-196.29088406,0.00047346,2]
[343197210,1732435849149,-500.0,0.00047346,2]
[343197211,1732435849159,-500.0,0.00047346,2]
[343197212,1732435849169,-500.0,0.00047346,2]
[343197213,1732435849179,-500.0,0.00047346,2]
[343197214,1732435849188,-1078.92,0.00047346,2]
[343197215,1732435849198,-500.0,0.00047346,2]
[343197216,1732435849210,-95105.9419593,0.00047346,10]
[343197217,1732435849219,-161.97907418,0.000474,23]
[343197218,1732435849230,-9800.0,0.00047463,7]
[343197219,1732435849244,-152.16,0.000475,2]
[343197220,1732435849255,-152.16,0.000475,2]
[343197221,1732435849265,-500.0,0.00047699,2]
[343197222,1732435849275,-500.0,0.00047699,2]
[343197223,1732435849284,-500.0,0.00047699,2]
[343197224,1732435849294,-500.0,0.00047699,2]
[343197225,1732435849304,-500.0,0.00047699,2]
[343197226,1732435849314,-500.0,0.00047699,2]
[343197227,1732435849325,-500.0,0.00047699,2]
[343197228,1732435849335,-500.0,0.00047699,2]
[343197229,1732435849345,-642.7296842,0.00047699,2]
[343197230,1732435849354,-500.0,0.00047699,2]
[343197231,1732435849365,-549.56,0.00047699,2]
[343197232,1732435849375,-500.0,0.00047699,2]
[343197233,1732435849384,-705.09,0.00047699,2]
[343197234,1732435849394,-561.62,0.00047699,2]
[343197235,1732435849404,-1087.53,0.00047699,2]
[343197236,1732435849415,-638.23,0.00047699,2]
[343197237,1732435849426,-2231.33,0.00047699,2]
[343197238,1732435849435,-1475.18,0.00047699,2]
[343197239,1732435849445,-500.0,0.00047699,2]
[343197240,1732435849456,-500.0,0.00047699,2]
[343197241,1732435849465,-500.0,0.00047699,2]
[343197242,1732435849475,-1520.14,0.00047699,2]
[343197243,1732435849485,-1697.53,0.00047699,2]
[343197244,1732435849495,-500.0,0.00047699,2]
[343197245,1732435849505,-500.0,0.00047699,2]
[343197246,1732435849515,-348.15,0.00047699,2]
[343197247,1732435849526,-500.0,0.00047699,2]
[343197248,1732435849535,-500.0,0.00047699,2]
[343197249,1732435849546,-500.0,0.00047699,2]
[343197250,1732435849557,-500.0,0.00047699,2]
[343197251,1732435849567,-587.13,0.00047699,2]
[343197252,1732435849576,-500.0,0.00047699,120]
[343197253,1732435849586,-500.0,0.00047699,2]
[343197254,1732435849596,-500.0,0.00047699,2]
[343197255,1732435849606,-500.0,0.00047699,2]
[343197256,1732435849616,-500.0,0.00047699,2]
[343197257,1732435849627,-708.3,0.00047699,2]
[343197258,1732435849636,-528.97,0.00047699,2]
[343197259,1732435849646,-2000.0,0.000477,120]
[343197260,1732435849656,-1636.0,0.000477,120]
[343197261,1732435849666,-151.0,0.000477,7]
[343197262,1732435849676,-151.0,0.000477,14]
[343197263,1732435849685,-89557.97685141,0.000477,29]
[343197264,1732435849695,-150.34104622,0.00047781,2]
[343197265,1732435849705,-239.07519223,0.00047899,2]
[343197266,1732435849715,-500.0,0.00047899,2]
[343197267,1732435849725,-500.0,0.00047899,2]
[343197268,1732435849735,-1078.92,0.00047899,2]
[343197269,1732435849745,-33125.16451185,0.000479,120]
[343197270,1732435849754,-1800.0,0.00048,49]
[343197271,1732435849763,-301.88,0.00048049,2]
[343197272,1732435849773,-500.0,0.00048109,120]
[343197273,1732435849783,-2000.0,0.00048109,120]
[343197274,1732435849792,-500.0,0.00048109,120]
[343197275,1732435849802,-500.0,0.00048109,120]
[343197276,1732435849811,-200.0,0.00048109,120]
[343197277,1732435849820,-150.34104622,0.00048236,2]
[343197278,1732435849830,-2684.61013946,0.00048449,120]
[343197279,1732435849839,-155.76,0.00048472,2]
[343197280,1732435849848,-1227.82355565,0.00048484,7]
[343197281,1732435849857,-5000.0,0.0004849,120]
[343197282,1732435849867,-309.64,0.000485,107]
[343197283,1732435849876,-999.48,0.000485,107]
[343197284,1732435849886,-500.0,0.00048592,120]
[343197285,1732435849895,-150.34104622,0.00048691,2]
[343197286,1732435849904,-500.0,0.00048866,120]
[343197287,1732435849914,-150.0,0.00049,7]
[343197288,1732435849924,-757.56869497,0.00049,120]
[343197289,1732435849933,-20046.49542298,0.00049,120]
[343197290,1732435849943,-322.8945487,0.00049,30]
[343197291,1732435849953,-254.519,0.00049,60]
[343197292,1732435849963,-3000.0,0.00049,60]
[343197293,1732435849973,-161.97907418,0.00049133,25]
[343197294,1732435849982,-500.0,0.0004914,120]
[343197295,1732435849991,-150.34104622,0.00049145,2]
[343197296,1732435850000,-737.66271,0.00049191,60]
[343197297,1732435850011,-150.0,0.00049211,120]
[343197298,1732435850020,-1000.0,0.00049314,120]
[343197299,1732435850030,-500.0,0.00049314,2]
[343197300,1732435850039,-220.6171764,0.00049314,2]
[343197301,1732435850049,-500.0,0.00049315,2]
[343197302,1732435850059,-507.77662116,0.00049315,2]
[343197303,1732435850069,-10363.99,0.00049315,120]
[343197304,1732435850078,-10363.99,0.00049315,120]
[343197305,1732435850089,-10363.99,0.00049315,120]
[343197306,1732435850099,-10363.99,0.00049315,120]
[343197307,1732435850108,-10363.99,0.00049315,120]
[343197308,1732435850117,-151.0,0.00049315,30]
[343197309,1732435850127,-150.0,0.00049318,30]
[343197310,1732435850136,-5542.0,0.00049323,120]
[343197311,1732435850145,-2110.0,0.0004938,30]
[343197312,1732435850155,-500.0,0.00049398,120]
[343197313,1732435850164,-3473.11,0.00049398,120]
[343197314,1732435850174,-500.0,0.00049398,120]
[343197315,1732435850183,-500.0,0.00049398,120]
[343197316,1732435850193,-500.0,0.00049398,120]
[343197317,1732435850202,-500.0,0.00049398,120]
[343197318,1732435850215,-500.0,0.00049398,120]
[343197319,1732435850225,-392.40749667,0.00049398,120]
[343197320,1732435850235,-700.1,0.00049398,120]
[343197321,1732435850245,-472.56323073,0.00049398,120]
[343197322,1732435850255,-188.45613106,0.00049398,120]
[343197323,1732435850264,-212.88,0.00049398,120]
[343197324,1732435850274,-500.0,0.00049398,120]
[343197325,1732435850283,-500.0,0.00049398,120]
[343197326,1732435850294,-1177.48,0.00049398,120]
[343197327,1732435850303,-500.0,0.00049398,120]
[343197328,1732435850313,-500.0,0.00049398,120]
[343197329,1732435850322,-581.45102056,0.00049398,120]
[343197330,1732435850332,-1113.97,0.000494,2]
[343197331,1732435850341,-309.64,0.0004941,115]
[343197332,1732435850353,-500.0,0.00049414,120]
[343197333,1732435850363,-157.112416,0.00049448,120]
[343197334,1732435850372,-150.0,0.00049455,30]
[343197335,1732435850382,-2000.0,0.00049462,120]
[343197336,1732435850392,-10000.0,0.000495,120]
[343197337,1732435850401,-24339.70621777,0.000495,2]
[343197338,1732435850411,-150.0,0.00049592,30]
[343197339,1732435850420,-2684.61013946,0.00049598,120]
[343197340,1732435850430,-3536.00274215,0.000496,90]
[343197341,1732435850439,-150.34104622,0.000496,2]
[343197342,1732435850448,-708.3,0.00049615,120]
[343197343,1732435850458,-528.97,0.00049615,120]
[343197344,1732435850467,-151.0,0.00049616,120]
[343197345,1732435850476,-151.0,0.00049616,30]
[343197346,1732435850486,-151.0,0.00049616,7]
[343197347,1732435850495,-151.0,0.00049616,120]
[343197348,1732435850504,-1030.45,0.00049616,120]
[343197349,1732435850514,-1030.45,0.00049616,120]
[343197350,1732435850523,-1030.45,0.00049616,120]
[343197351,1732435850532,-1030.45,0.00049616,120]
[343197352,1732435850541,-1030.45,0.00049616,120]
[343197353,1732435850551,-1030.45,0.00049616,120]
[343197354,1732435850562,-1030.45,0.00049616,120]
[343197355,1732435850571,-1030.45,0.00049616,120]
[343197356,1732435850580,-1030.45,0.00049616,120]
[343197357,1732435850589,-1030.45,0.00049616,120]
[343197358,1732435850599,-1030.45,0.00049616,120]
[343197359,1732435850608,-1030.45,0.00049616,120]
[343197360,1732435850616,-1030.45,0.00049616,120]
[343197361,1732435850626,-1030.45,0.00049616,120]
[343197362,1732435850635,-1030.45,0.00049616,120]
[343197363,1732435850644,-1030.45,0.00049616,120]
[343197364,1732435850653,-1030.45,0.00049616,120]
[343197365,1732435850662,-1030.45,0.00049616,120]
[343197366,1732435850671,-1030.45,0.00049616,120]
[343197367,1732435850680,-1030.45,0.00049616,120]
[343197368,1732435850690,-1030.45,0.00049616,120]
[343197369,1732435850699,-1030.45,0.00049616,120]
[343197370,1732435850708,-1030.45,0.00049616,120]
[343197371,1732435850717,-1030.63807964,0.00049616,120]
[343197372,1732435850727,-2000.0,0.00049628,2]
[343197373,1732435850736,-892.0156,0.00049628,2]
[343197374,1732435850745,-2000.0,0.00049628,2]
[343197375,1732435850755,-2000.0,0.00049628,2]
[343197376,1732435850764,-160.27,0.00049632,120]
[343197377,1732435850774,-11718.0279641,0.00049664,2]
[343197378,1732435850783,-3869.4533734,0.00049664,2]
[343197379,1732435850792,-621.0344685,0.00049664,2]
[343197380,1732435850801,-500.0,0.00049665,120]
[343197381,1732435850810,-500.0,0.00049665,120]
[343197382,1732435850820,-500.0,0.00049665,120]
[343197383,1732435850829,-705.09,0.00049665,120]
[343197384,1732435850838,-561.62,0.00049665,120]
[343197385,1732435850848,-1087.53,0.00049665,120]
[343197386,1732435850857,-638.23,0.00049665,120]
[343197387,1732435850867,-2231.33,0.00049665,120]
[343197388,1732435850876,-1475.18,0.00049665,120]
[343197389,1732435850885,-342.00453826,0.00049665,120]
[343197390,1732435850894,-500.0,0.00049665,120]
[343197391,1732435850903,-500.0,0.00049665,120]
[343197392,1732435850912,-1520.14,0.00049665,120]
[343197393,1732435850922,-1697.53,0.00049665,120]
[343197394,1732435850931,-500.0,0.00049665,120]
[343197395,1732435850940,-500.0,0.00049665,120]
[343197396,1732435850950,-500.0,0.00049665,120]
[343197397,1732435850960,-500.0,0.00049665,120]
[343197398,1732435850969,-500.0,0.00049665,120]
[343197399,1732435850979,-500.0,0.00049665,120]
[343197400,1732435850988,-587.13,0.00049665,120]
[343197401,1732435850997,-514.96480425,0.00049665,120]
[343197402,1732435851006,-500.0,0.00049665,120]
[343197403,1732435851015,-500.0,0.00049665,120]
[343197404,1732435851024,-500.0,0.00049665,120]
[343197405,1732435851033,-500.0,0.00049665,120]
[343197406,1732435851042,-10986.0485376,0.00049665,2]
[343197407,1732435851051,-3627.7437385,0.00049665,2]
[343197408,1732435851061,-582.2408716,0.00049665,2]
[343197409,1732435851070,-10254.0691112,0.00049666,2]
[343197410,1732435851087,-3386.0341036,0.00049666,2]
[343197411,1732435851096,-543.4472746,0.00049666,2]
[343197412,1732435851106,-10363.99,0.00049686,120]
[343197413,1732435851115,-1078.92,0.00049686,120]
[343197414,1732435851127,-600.0,0.00049688,120]
[343197415,1732435851137,-500.0,0.00049688,120]
[343197416,1732435851146,-368.8337525,0.00049696,120]
[343197417,1732435851160,-500.0,0.00049697,120]
[343197418,1732435851171,-500.0,0.00049697,120]
[343197419,1732435851179,-500.0,0.00049697,120]
[343197420,1732435851187,-500.0,0.00049697,120]
[343197421,1732435851195,-500.0,0.00049697,120]
[343197422,1732435851204,-500.0,0.00049697,120]
[343197423,1732435851214,-500.0,0.00049697,120]
[343197424,1732435851223,-500.0,0.00049697,120]
[343197425,1732435851232,-500.0,0.00049697,120]
[343197426,1732435851244,-500.0,0.00049697,120]
[343197427,1732435851253,-500.0,0.00049697,120]
[343197428,1732435851263,-500.0,0.00049697,120]
[343197429,1732435851272,-3473.11,0.00049697,120]
[343197430,1732435851281,-3473.11,0.00049697,120]
[343197431,1732435851291,-3473.11,0.00049697,120]
[343197432,1732435851300,-705.09,0.00049697,120]
[343197433,1732435851308,-705.09,0.00049697,120]
[343197434,1732435851317,-705.09,0.00049697,120]
[343197435,1732435851327,-561.62,0.00049697,120]
[343197436,1732435851337,-561.62,0.00049697,120]
[343197437,1732435851347,-561.62,0.00049697,120]
[343197438,1732435851356,-1087.53,0.00049697,120]
[343197439,1732435851366,-1087.53,0.00049697,120]
[343197440,1732435851375,-1087.53,0.00049697,120]
[343197441,1732435851384,-638.23,0.00049697,120]
[343197442,1732435851394,-638.23,0.00049697,120]
[343197443,1732435851404,-638.23,0.00049697,120]
[343197444,1732435851413,-2231.33,0.00049697,120]
[343197445,1732435851423,-2231.33,0.00049697,120]
[343197446,1732435851432,-2231.33,0.00049697,120]
[343197447,1732435851442,-538.09933401,0.00049697,120]
[343197448,1732435851451,-500.0,0.00049697,120]
[343197449,1732435851461,-500.0,0.00049697,120]
[343197450,1732435851471,-500.0,0.00049697,120]
[343197451,1732435851480,-1475.18,0.00049697,120]
[343197452,1732435851490,-1475.18,0.00049697,120]
[343197453,1732435851499,-1475.18,0.00049697,120]
[343197454,1732435851508,-500.0,0.00049697,120]
[343197455,1732435851518,-500.0,0.00049697,120]
[343197456,1732435851528,-500.0,0.00049697,120]
[343197457,1732435851538,-500.0,0.00049697,120]
[343197458,1732435851547,-500.0,0.00049697,120]
[343197459,1732435851556,-500.0,0.00049697,120]
[343197460,1732435851566,-500.0,0.00049697,120]
[343197461,1732435851577,-500.0,0.00049697,120]
[343197462,1732435851586,-500.0,0.00049697,120]
[343197463,1732435851596,-500.0,0.00049697,120]
[343197464,1732435851605,-500.0,0.00049697,120]
[343197465,1732435851615,-500.0,0.00049697,120]
[343197466,1732435851624,-1520.14,0.00049697,120]
[343197467,1732435851634,-1520.14,0.00049697,120]
[343197468,1732435851645,-1520.14,0.00049697,120]
[343197469,1732435851654,-1697.53,0.00049697,120]
[343197470,1732435851663,-500.0,0.00049697,120]
[343197471,1732435851674,-1697.53,0.00049697,120]
[343197472,1732435851683,-500.0,0.00049697,120]
[343197473,1732435851694,-1697.53,0.00049697,120]
[343197474,1732435851704,-500.0,0.00049697,120]
[343197475,1732435851714,-500.0,0.00049697,120]
[343197476,1732435851723,-500.0,0.00049697,120]
[343197477,1732435851732,-172.66829592,0.00049697,120]
[343197478,1732435851742,-500.0,0.00049697,120]
[343197479,1732435851751,-500.0,0.00049697,120]
[343197480,1732435851760,-500.0,0.00049697,120]
[343197481,1732435851770,-500.0,0.00049697,120]
[343197482,1732435851780,-500.0,0.00049697,120]
[343197483,1732435851790,-500.0,0.00049697,120]
[343197484,1732435851802,-700.1,0.00049697,120]
[343197485,1732435851812,-700.1,0.00049697,120]
[343197486,1732435851822,-700.1,0.00049697,120]
[343197487,1732435851832,-459.65924667,0.00049697,120]
[343197488,1732435851842,-500.0,0.00049697,120]
[343197489,1732435851851,-187.82866041,0.00049697,120]
[343197490,1732435851861,-587.13,0.00049697,120]
[343197491,1732435851870,-587.13,0.00049697,120]
[343197492,1732435851880,-587.13,0.00049697,120]
[343197493,1732435851889,-500.0,0.00049697,120]
[343197494,1732435852019,-500.0,0.00049697,120]
[343197495,1732435852047,-500.0,0.00049697,120]
[343197496,1732435852057,-500.0,0.00049697,120]
[343197497,1732435852067,-500.0,0.00049697,120]
[343197498,1732435852076,-639.35,0.00049697,120]
[343197499,1732435852086,-589.48953404,0.00049697,120]
[343197500,1732435852096,-607.13,0.00049697,120]
[343197501,1732435852105,-500.0,0.00049697,120]
[343197502,1732435852115,-500.0,0.00049697,120]
[343197503,1732435852125,-367.84568127,0.00049697,120]
[343197504,1732435852135,-1177.48,0.00049697,120]
[343197505,1732435852144,-1177.48,0.00049697,120]
[343197506,1732435852154,-1177.48,0.00049697,120]
[343197507,1732435852163,-500.0,0.00049697,120]
[343197508,1732435852173,-500.0,0.00049697,120]
[343197509,1732435852183,-500.0,0.00049697,120]
[343197510,1732435852193,-708.3,0.00049697,120]
[343197511,1732435852203,-708.3,0.00049697,120]
[343197512,1732435852216,-708.3,0.00049697,120]
[343197513,1732435852226,-316.13661596,0.00049697,120]
[343197514,1732435852237,-500.0,0.00049697,120]
[343197515,1732435852247,-402.67,0.00049697,120]
[343197516,1732435852258,-528.97,0.00049697,120]
[343197517,1732435852268,-528.97,0.00049697,120]
[343197518,1732435852278,-528.97,0.00049697,120]
[343197519,1732435852288,-10363.99,0.00049697,120]
[343197520,1732435852297,-10363.99,0.00049697,120]
[343197521,1732435852307,-10363.99,0.00049697,120]
[343197522,1732435852318,-1078.92,0.00049697,120]
[343197523,1732435852329,-1078.92,0.00049697,120]
[343197524,1732435852339,-1078.92,0.00049697,120]
[343197525,1732435852348,-760086.91118165,0.00049698,30]
[343197526,1732435852359,-151.0,0.00049698,120]
[343197527,1732435852369,-151.0,0.00049698,30]
[343197528,1732435852379,-500.0,0.00049698,120]
[343197529,1732435852389,-561.73330603,0.00049698,120]
[343197530,1732435852400,-558.26747514,0.00049698,120]
[343197531,1732435852410,-151.0,0.00049698,7]
[343197532,1732435852420,-3473.11,0.00049698,120]
[343197533,1732435852430,-500.0,0.00049698,120]
[343197534,1732435852439,-151.0,0.00049698,120]
[343197535,1732435852451,-500.0,0.00049698,120]
[343197536,1732435852461,-500.0,0.00049698,120]
[343197537,1732435852470,-197.6,0.00049698,120]
[343197538,1732435852480,-700.1,0.00049698,120]
[343197539,1732435852490,-500.0,0.00049698,120]
[343197540,1732435852500,-1177.48,0.00049698,120]
[343197541,1732435852511,-708.3,0.00049698,120]
[343197542,1732435852521,-528.97,0.00049698,120]
[343197543,1732435852531,-10363.99,0.00049698,120]
[343197544,1732435852541,-1078.92,0.00049698,120]
[343197545,1732435852550,-500.0,0.00049699,120]
[343197546,1732435852560,-500.0,0.00049699,120]
[343197547,1732435852570,-500.0,0.00049699,120]
[343197548,1732435852580,-500.0,0.00049699,120]
[343197549,1732435852589,-500.0,0.00049699,120]
[343197550,1732435852599,-500.0,0.00049699,120]
[343197551,1732435852608,-462.52441773,0.00049699,120]
[343197552,1732435852618,-500.0,0.00049699,120]
[343197553,1732435852629,-500.0,0.00049699,120]
[343197554,1732435852639,-500.0,0.00049699,120]
[343197555,1732435852648,-3473.11,0.00049699,120]
[343197556,1732435852658,-3473.11,0.00049699,120]
[343197557,1732435852667,-3473.11,0.00049699,120]
[343197558,1732435852678,-705.09,0.00049699,120]
[343197559,1732435852687,-705.09,0.00049699,120]
[343197560,1732435852696,-705.09,0.00049699,120]
[343197561,1732435852706,-561.62,0.00049699,120]
[343197562,1732435852715,-561.62,0.00049699,120]
[343197563,1732435852724,-561.62,0.00049699,120]
[343197564,1732435852733,-1087.53,0.00049699,120]
[343197565,1732435852742,-1087.53,0.00049699,120]
[343197566,1732435852752,-1087.53,0.00049699,120]
[343197567,1732435852761,-638.23,0.00049699,120]
[343197568,1732435852771,-638.23,0.00049699,120]
[343197569,1732435852780,-638.23,0.00049699,120]
[343197570,1732435852790,-2231.33,0.00049699,120]
[343197571,1732435852799,-2231.33,0.00049699,120]
[343197572,1732435852809,-2231.33,0.00049699,120]
[343197573,1732435852819,-500.0,0.00049699,120]
[343197574,1732435852829,-500.0,0.00049699,120]
[343197575,1732435852838,-568.59,0.00049699,120]
[343197576,1732435852848,-1475.18,0.00049699,120]
[343197577,1732435852858,-1475.18,0.00049699,120]
[343197578,1732435852867,-1475.18,0.00049699,120]
[343197579,1732435852877,-500.0,0.00049699,120]
[343197580,1732435852887,-500.0,0.00049699,120]
[343197581,1732435852897,-500.0,0.00049699,120]
[343197582,1732435852906,-500.0,0.00049699,120]
[343197583,1732435852916,-500.0,0.00049699,120]
[343197584,1732435852926,-500.0,0.00049699,120]
[343197585,1732435852935,-500.0,0.00049699,120]
[343197586,1732435852946,-500.0,0.00049699,120]
[343197587,1732435852965,-596.54,0.00049699,120]
[343197588,1732435852974,-500.0,0.00049699,120]
[343197589,1732435852984,-500.0,0.00049699,120]
[343197590,1732435852993,-500.0,0.00049699,120]
[343197591,1732435853003,-1520.14,0.00049699,120]
[343197592,1732435853012,-1520.14,0.00049699,120]
[343197593,1732435853021,-1520.14,0.00049699,120]
[343197594,1732435853031,-500.0,0.00049699,120]
[343197595,1732435853041,-500.0,0.00049699,120]
[343197596,1732435853050,-1697.53,0.00049699,120]
[343197597,1732435853060,-500.0,0.00049699,120]
[343197598,1732435853070,-1697.53,0.00049699,120]
[343197599,1732435853080,-1697.53,0.00049699,120]
[343197600,1732435853091,-500.0,0.00049699,120]
[343197601,1732435853101,-500.0,0.00049699,120]
[343197602,1732435853111,-500.0,0.00049699,120]
[343197603,1732435853121,-700.1,0.00049699,120]
[343197604,1732435853131,-700.1,0.00049699,120]
[343197605,1732435853141,-700.1,0.00049699,120]
[343197606,1732435853151,-587.13,0.00049699,120]
[343197607,1732435853160,-587.13,0.00049699,120]
[343197608,1732435853170,-587.13,0.00049699,120]
[343197609,1732435853180,-585.11590035,0.00049699,120]
[343197610,1732435853190,-1177.48,0.00049699,120]
[343197611,1732435853200,-1177.48,0.00049699,120]
[343197612,1732435853212,-1177.48,0.00049699,120]
[343197613,1732435853222,-500.0,0.00049699,120]
[343197614,1732435853232,-500.0,0.00049699,120]
[343197615,1732435853244,-500.0,0.00049699,120]
[343197616,1732435853253,-44132.92665856,0.00049699,60]
[343197617,1732435853263,-708.3,0.00049699,120]
[343197618,1732435853272,-708.3,0.00049699,120]
[343197619,1732435853283,-708.3,0.00049699,120]
[343197620,1732435853292,-528.97,0.00049699,120]
[343197621,1732435853302,-528.97,0.00049699,120]
[343197622,1732435853314,-528.97,0.00049699,120]
[343197623,1732435853324,-10363.99,0.00049699,120]
[343197624,1732435853334,-10363.99,0.00049699,120]
[343197625,1732435853344,-10363.99,0.00049699,120]
[343197626,1732435853354,-1078.92,0.00049699,120]
[343197627,1732435853363,-1078.92,0.00049699,120]
[343197628,1732435853373,-1078.92,0.00049699,120]
[343197629,1732435853383,-207857.01412748,0.000497,60]
[343197630,1732435853392,-151.0,0.000497,120]
[343197631,1732435853404,-151.0,0.000497,120]
[343197632,1732435853412,-151.0,0.000497,30]
[343197633,1732435853422,-151.0,0.000497,30]
[343197634,1732435853432,-153.76322,0.000497,7]
[343197635,1732435853442,-151.0,0.000497,120]
[343197636,1732435853452,-151.0,0.000497,120]
[343197637,1732435853462,-46819.23068418,0.000497,35]
[343197638,1732435853672,-0.09,0.000497,35]
[343197639,1732435853706,-270.79609194,0.00044998,120]
[343197640,1732435853720,-3350.01895657,0.000497,35]
[343197641,1732435853739,-23478.82141517,0.000497,35]
[343197642,1732435853753,-6219.46948285,0.000497,35]
[343197643,1732435853767,-7675.5,0.000497,35]
[343197644,1732435853789,-1003.02790319,0.00047998,15]
[343197645,1732435853803,-772.47321431,0.000497,35]
[343197646,1732435853819,-1156.82,0.000497,35]
[343197647,1732435853836,-4382.71401,0.000497,35]
[343197648,1732435853852,-467.58578647,0.000497,35]
[343197649,1732436023086,255.0,0.000351,2]
[343197650,1732436043297,214.0,0.0003,120]
[343197653,1732436295878,1283.61238943,0.00035,2]
[343197654,1732436599723,500.0,0.00035,120]
[343197655,1732436605987,2000.0,0.00035,120]
[343197656,1732436617009,509.174071,0.00035,120]
[343197657,1732436620671,500.0,0.00035,120]
[343197658,1732436626689,200.0,0.00035,120]
[343197660,1732436783108,494338.21353957,0.0002361,7]
[343197661,1732436783141,131921.12294492,0.0002361,7]
[343197662,1732436786918,10110.39583729,0.00034,7]
[343197664,1732436911615,11926.92661472,0.000299,7]
[343197690,1732437032890,-32260.76722779,0.00041,10]
[343197691,1732437032899,-158.37,0.00041096,2]
[343197692,1732437032908,-159.88,0.00041096,2]
[343197693,1732437032917,-3000.51626336,0.000411,2]
[343197694,1732437032926,-488.72394886,0.00041807,62]
[343197695,1732437032948,-180.16805114,0.00041807,62]
[343197696,1732437032957,-349.83194886,0.00041871,2]
[343197697,1732437032968,-3020.619441,0.00041871,2]
[343197702,1732437038226,-1305.89991283,0.00041871,2]
[343197703,1732437038446,-910.120518,0.00041871,2]
[343197704,1732437038505,-1983.97672939,0.00041871,2]
[343197705,1732437038568,-286.95737118,0.00041871,2]
[343197706,1732437038683,-98211.93993786,0.00041871,2]
[343197707,1732437038695,-4938.69414088,0.00041871,2]
[343197708,1732437038705,-500.0,0.00041871,2]
[343197709,1732437038715,-150.0,0.00041871,2]
[343197710,1732437038724,-401.21116133,0.000421,15]
[343197711,1732437038733,-2571.0225,0.000422,2]
[343197713,1732437038743,-5273.875,0.000422,2]
[343197714,1732437038752,-589.08,0.00042499,2]
[343197715,1732437038762,-500.0,0.00042499,2]
[343197716,1732437038771,-1208.64,0.00042499,2]
[343197717,1732437038781,-1684.16,0.00042499,2]
[343197718,1732437038791,-500.0,0.00042499,2]
[343197719,1732437038800,-500.0,0.00042499,2]
[343197720,1732437038810,-823.41,0.00042499,2]
[343197721,1732437038819,-919.49,0.00042499,2]
[343197722,1732437038829,-500.0,0.00042499,2]
[343197723,1732437038839,-500.0,0.00042499,2]
[343197724,1732437038848,-500.0,0.00042499,2]
[343197726,1732437038858,-500.0,0.00042499,2]
[343197728,1732437038867,-500.0,0.00042499,2]
[343197730,1732437038877,-401.21116127,0.00043278,15]
[343197732,1732437038890,-400.0,0.00044,10]
[343197733,1732437038900,-14608.60446118,0.00044,14]
[343197734,1732437038909,-401.21116127,0.00044456,15]
[343197735,1732437038918,-500.0,0.00044633,2]
[343197736,1732437038928,-66.26420502,0.00044633,2]
[343197737,1732437038940,-433.73579498,0.00044633,2]
[343197738,1732437038949,-500.0,0.00044633,2]
[343197739,1732437038958,-815.0,0.00044922,2]
[343197740,1732437038973,-150.0,0.00044922,2]